bitfinex/quotes_SOLUSD_20250226
["timestamp","ask_amount","ask_price","bid_price","bid_amount"]
[1740596918924,5.25,132.04,131.92,237.84964886]
[1740596919126,12.18,132.03,131.92,237.84964886]
[1740596919529,20.0,132.0,131.92,237.84964886]
[1740596919729,12.18,132.03,131.92,260.66964886]
[1740596919950,12.18,132.03,131.92,261.66964886]
[1740596920144,1.38785733,132.04,131.92,262.66964886]
[1740596920345,0.063,132.06,131.96,18.64964886]
[1740596920529,0.063,132.06,131.96,237.84964886]
[1740596920843,0.063,132.06,131.98,18.64964886]
[1740596921043,20.063,132.06,131.98,18.64964886]
[1740596921351,0.063,132.06,132.0,18.64964886]
[1740596921675,0.063,132.06,132.02,18.64964886]
[1740596921843,0.063,132.06,132.04,18.64964886]
[1740596922143,0.063,132.13,132.06,42.46964886]
[1740596922353,0.063,132.13,132.08,18.64964886]
[1740596922552,0.063,132.13,132.08,155.44964886]
[1740596922848,20.063,132.13,132.1,18.64964886]
[1740596923061,20.063,132.13,132.1,155.44964886]
[1740596923426,0.063,132.13,132.1,155.44964886]
[1740596924149,20.063,132.13,132.1,155.44964886]
[1740596924752,0.063,132.13,132.1,155.44964886]
[1740596924940,0.063,132.13,132.07,136.8]
[1740596925251,0.063,132.13,132.08,18.64964886]
[1740596925465,12.223,132.13,132.06,347.04]
[1740596925772,20.0,132.1,131.99,136.8]
[1740596926067,20.0,132.09,131.98,264.58]
[1740596926248,20.0,132.09,131.98,346.98]
[1740596926249,21.38421542,132.09,131.98,346.98]
[1740596926499,20.0,132.09,131.99,20.23985901]
[1740596926666,20.0,132.09,131.98,346.98]
[1740596927369,20.0,132.09,131.99,18.64964886]
[1740596928255,20.0,132.09,131.99,237.84964886]
[1740596929274,31.029,132.12,131.99,237.84964886]
[1740596929448,31.029,132.12,132.0,1.58996558]
[1740596929770,20.0,132.09,132.01,18.64964886]
[1740596930076,0.063,132.13,132.02,20.23949421]
[1740596930245,12.223,132.13,132.04,18.64964886]
[1740596930442,20.0,132.1,132.04,239.43897239]
[1740596930643,20.0,132.1,132.04,237.84964886]
[1740596932673,20.0,132.1,132.04,101.04964886]
[1740596933460,20.0,132.1,132.04,237.84964886]
[1740596933649,20.0,132.1,132.04,101.04964886]
[1740596935181,20.0,132.1,132.04,82.4]
[1740596936990,20.0,132.09,132.0,219.2]
[1740596937282,20.0,132.05,131.98,210.18]
[1740596937454,20.0,132.01,131.93,219.2]
[1740596939153,20.0,132.01,131.94,18.64964886]
[1740596939981,20.0,132.01,131.94,237.84964886]
[1740596940290,20.0,132.03,131.94,237.84964886]
[1740596941657,12.5504,132.06,131.94,237.84964886]
[1740596941856,20.0,132.03,131.94,237.84964886]
[1740596942057,12.5504,132.06,131.96,18.64964886]
[1740596942302,12.5441,132.11,131.98,18.64964886]
[1740596942471,12.14,132.09,131.98,237.84964886]
[1740596942980,0.063,132.13,132.03,1.0]
[1740596943182,0.063,132.13,132.05,19.64964886]
[1740596943370,0.063,132.13,132.07,18.64964886]
[1740596943562,0.063,132.13,132.07,237.84964886]
[1740596944076,0.063,132.13,132.01,219.2]
[1740596944387,20.0,132.1,132.01,82.4]
[1740596944564,12.14,132.09,132.02,18.64964886]
[1740596944768,12.14,132.09,132.02,237.84964886]
[1740596944959,20.0,132.06,132.02,237.84964886]
[1740596945376,20.0,132.06,132.02,219.2]
[1740596945790,20.0,132.06,131.97,18.64964886]
[1740596946088,20.0,132.06,132.03,18.64964886]
[1740596946284,20.0,132.06,132.03,237.84964886]
[1740596947061,20.0,132.06,132.0,219.2]
[1740596947263,20.0,132.06,132.01,18.64964886]
[1740596947885,12.14,132.09,132.01,237.84964886]
[1740596948269,0.063,132.13,132.01,283.42964886]
[1740596948482,0.063,132.13,132.03,64.22964886]
[1740596948789,20.0,132.12,132.03,64.22964886]
[1740596949086,20.0,132.12,132.03,65.81906113]
[1740596949464,0.063,132.13,132.03,287.01906113]
[1740596949693,0.063,132.13,132.03,284.42964886]
[1740596949877,0.063,132.13,132.03,238.84964886]
[1740596950070,20.0,132.12,132.04,1.0]
[1740596950261,20.0,132.12,132.05,18.64964886]
[1740596951083,20.0,132.12,132.05,20.23893684]
[1740596951460,20.0,132.12,132.05,239.43893684]
[1740596951661,0.063,132.13,132.05,238.84964886]
[1740596952172,20.0,132.12,132.05,237.84964886]
[1740596952585,20.0,132.11,132.05,82.43]
[1740596952891,20.0,132.07,132.05,0.03]
[1740596953290,20.0,132.07,132.05,82.43]
[1740596953470,20.0,132.07,132.05,0.03]
[1740596954595,20.0,132.01,131.97,219.2]
[1740596954885,32.12,132.01,131.95,136.8]
[1740596955665,20.0,132.01,131.96,18.64964886]
[1740596955991,17.1615,132.08,131.96,239.44022182]
[1740596956170,17.1615,132.08,131.98,18.64964886]
[1740596956487,12.12,132.08,132.0,20.64964886]
[1740596956688,50.06942634,132.13,132.02,18.64964886]
[1740596956879,50.06942634,132.13,132.02,237.84964886]
[1740596956880,20.0,132.1,132.02,237.84964886]
[1740596957136,11.35622318,132.11,132.02,82.4]
[1740596957398,11.35622318,132.11,132.03,18.64964886]
[1740596957692,20.0,132.08,132.03,82.4]
[1740596958469,20.0,132.07,131.96,219.2]
[1740596958686,20.0,132.03,131.96,219.2]
[1740596958994,20.0,132.03,131.97,18.64964886]
[1740596959768,20.0,132.03,131.98,45.58]
[1740596960072,20.0,132.03,131.97,18.64964886]
[1740596960490,20.0,132.03,131.96,219.2]
[1740596960871,20.0,132.03,131.97,18.64964886]
[1740596961277,12.12,132.06,131.97,18.64964886]
[1740596961473,12.12,132.06,131.97,237.84964886]
[1740596961671,1.38785733,132.08,131.97,237.84964886]
[1740596961992,12.12,132.09,131.97,237.84964886]
[1740596962396,120.13804811,132.12,131.99,64.22964886]
[1740596962568,11.12015466,132.11,132.01,18.64964886]
[1740596962773,50.06942634,132.13,132.01,237.84964886]
[1740596962981,20.0,132.1,132.01,237.84964886]
[1740596963186,50.06942634,132.13,132.01,237.84964886]
[1740596963387,50.06942634,132.13,132.03,18.64964886]
[1740596963616,20.0,132.1,132.03,237.84964886]
[1740596963908,12.183,132.13,132.03,283.42964886]
[1740596964409,12.183,132.13,132.05,18.64964886]
[1740596964615,12.183,132.13,132.05,237.84964886]
[1740596964783,20.0,132.1,132.05,237.84964886]
[1740596964989,12.183,132.13,132.05,237.84964886]
[1740596965199,20.0,132.1,132.05,237.84964886]
[1740596965401,20.0,132.1,132.05,82.4]
[1740596965585,20.0,132.09,132.05,82.4]
[1740596966647,20.0,132.05,132.01,82.4]
[1740596966926,20.0,132.04,131.97,219.2]
[1740596967288,20.0,132.03,131.97,82.4]
[1740596967485,24.6847,132.03,131.97,82.4]
[1740596967714,20.0,131.99,131.94,219.23]
[1740596967903,20.0,131.99,131.94,82.43]
[1740596968489,20.0,131.95,131.94,82.43]
[1740596968703,20.0,131.95,131.94,0.03]
[1740596973101,82.9,132.02,131.94,82.43]
[1740596973400,4.6847,132.03,131.95,18.64964886]
[1740596973401,12.1,132.0,131.95,18.64964886]
[1740596973599,12.1,132.0,131.95,237.84964886]
[1740596974003,20.0,131.97,131.95,237.84964886]
[1740596974203,20.0,131.97,131.95,219.2]
[1740596974404,12.1,132.0,131.95,219.2]
[1740596974811,11.35622318,132.05,131.96,18.64964886]
[1740596975139,49.13683119,132.06,131.96,239.44003769]
[1740596975315,49.13683119,132.06,131.98,19.64964886]
[1740596975517,37.03683119,132.06,132.01,1.0]
[1740596975719,11.35622318,132.07,132.03,1.0]
[1740596976023,11.35622318,132.07,132.04,18.64964886]
[1740596976223,11.35622318,132.07,132.04,237.84964886]
[1740596976821,0.063,132.05,132.04,237.84964886]
[1740596979720,0.063,132.05,132.01,219.2]
[1740596979926,0.063,132.05,132.02,18.64964886]
[1740596980485,0.063,132.05,132.01,219.2]
[1740596980924,20.0,132.04,131.97,18.64964886]
[1740596981103,20.0,132.04,131.97,237.84964886]
[1740596982999,20.0,132.04,131.95,264.6]
[1740596983203,20.0,132.02,131.95,264.6]
[1740596983698,20.0,132.02,131.95,347.0]
[1740596983902,16.6315,132.05,131.95,347.0]
[1740596983903,3.8423,132.05,131.97,18.64964886]
[1740596984202,23.8423,132.05,131.95,347.0]
[1740596984641,20.0,132.04,131.95,347.0]
[1740596984806,20.0,132.02,131.95,347.0]
[1740596985005,20.0,131.98,131.95,127.8]
[1740596985203,20.0,131.97,131.94,0.03]
[1740596986733,20.0,131.97,131.94,82.43]
[1740596986936,12.08,132.01,131.95,18.64964886]
[1740596987233,20.0,131.98,131.95,237.84964886]
[1740596987734,12.08,132.01,131.95,237.84964886]
[1740596987937,20.0,131.98,131.95,237.84964886]
[1740596988443,12.08,132.01,131.95,237.84964886]
[1740596988806,15.9203,132.05,131.95,237.84964886]
[1740596989407,3.8423,132.05,131.95,238.84964886]
[1740596989628,0.063,132.05,131.97,18.64964886]
[1740596989832,0.063,132.05,132.01,18.64964886]
[1740596990039,0.063,132.05,132.01,240.43949133]
[1740596990224,0.063,132.05,132.03,18.64964886]
[1740596990420,0.063,132.05,132.04,20.23915329]
[1740596990610,0.063,132.05,132.04,237.84964886]
[1740596994042,0.063,132.12,132.05,19.64964886]
[1740596994213,0.063,132.12,132.07,19.64964886]
[1740596994413,0.063,132.12,132.09,18.64964886]
[1740596994707,0.063,132.12,132.09,237.84964886]
[1740596994928,0.063,132.12,132.09,219.2]
[1740596995349,0.063,132.12,132.1,20.23851104]
[1740596995526,0.063,132.12,132.1,240.43851104]
[1740596995739,0.063,132.12,132.1,238.84964886]
[1740596995945,0.063,132.12,132.11,2.58857343]
[1740596996445,0.063,132.12,132.11,240.43822229]
[1740596996653,0.063,132.12,132.11,238.84964886]
[1740596997238,0.063,132.12,132.11,240.133972]
[1740596997445,0.063,132.12,132.11,237.84964886]
[1740596997643,0.063,132.12,132.11,238.84964886]
[1740596998216,0.063,132.12,132.11,237.84964886]
[1740596999948,0.063,132.12,132.11,238.84964886]
[1740597000346,0.063,132.13,132.12,19.64964886]
[1740597000563,12.6071,132.26,132.17,18.64964886]
[1740597000769,12.103,132.27,132.19,18.64964886]
[1740597001063,20.0,132.24,132.19,237.78664886]
[1740597001738,12.103,132.27,132.19,237.78664886]
[1740597002135,0.063,132.27,132.19,237.78664886]
[1740597002659,0.063,132.27,132.19,238.78664886]
[1740597002829,0.063,132.27,132.19,237.78664886]
[1740597003031,20.0,132.26,132.19,237.78664886]
[1740597003230,102.9,132.26,132.19,82.337]
[1740597003465,1.0,132.15,132.02,194.137]
[1740597003813,12.04,132.15,132.04,1.0]
[1740597003969,12.04,132.15,132.05,1.58906945]
[1740597004128,3.285,132.19,132.08,1.0]
[1740597004331,3.285,132.19,132.1,18.64964886]
[1740597004549,0.063,132.2,132.12,18.64964886]
[1740597004739,0.063,132.2,132.14,18.64964886]
[1740597004951,0.063,132.2,132.16,18.64964886]
[1740597005155,0.063,132.2,132.19,1.28432314]
[1740597005352,0.063,132.2,132.19,196.72423476]
[1740597005546,0.063,132.2,132.19,194.137]
[1740597005857,0.063,132.2,132.19,212.78664886]
[1740597006164,0.063,132.27,132.2,19.933972]
[1740597006338,0.063,132.27,132.22,18.64964886]
[1740597006532,0.063,132.27,132.24,18.64964886]
[1740597006757,0.063,132.27,132.24,212.78664886]
[1740597007059,0.063,132.27,132.26,18.64964886]
[1740597007370,0.063,132.27,132.26,213.78664886]
[1740597007669,2.0342629,132.34,132.26,213.78664886]
[1740597007962,22.0342629,132.34,132.27,1.58653784]
[1740597008170,2.0342629,132.34,132.28,18.64964886]
[1740597008346,2.0342629,132.34,132.3,18.64964886]
[1740597008539,2.0342629,132.34,132.3,212.78664886]
[1740597008871,2.0342629,132.34,132.32,18.64964886]
[1740597009076,2.0342629,132.34,132.3,194.137]
[1740597009634,2.0342629,132.34,132.31,18.64964886]
[1740597010466,2.0342629,132.34,132.31,214.37293642]
[1740597010652,2.0342629,132.34,132.31,212.78664886]
[1740597011344,2.0342629,132.34,132.29,264.4]
[1740597011740,20.0,132.32,132.29,127.6]
[1740597011960,20.0,132.32,132.3,18.64964886]
[1740597012138,20.0,132.32,132.27,194.137]
[1740597012336,20.0,132.32,132.22,212.79247688]
[1740597012563,20.0,132.32,132.23,2.58702707]
[1740597012768,20.0,132.32,132.24,65.22964886]
[1740597012952,20.0,132.32,132.26,18.64964886]
[1740597013141,20.0,132.32,132.26,212.78664886]
[1740597013841,20.0,132.32,132.28,18.64964886]
[1740597014283,20.0,132.32,132.27,194.137]
[1740597014454,2.0342629,132.34,132.28,20.23670164]
[1740597014657,2.0342629,132.34,132.3,18.64964886]
[1740597014959,2.0342629,132.34,132.31,1.58616161]
[1740597015664,2.0342629,132.34,132.32,18.64964886]
[1740597015865,2.0342629,132.34,132.33,20.23583183]
[1740597016063,2.0342629,132.34,132.33,214.37283183]
[1740597016249,2.0342629,132.34,132.33,212.78664886]
[1740597017466,2.0342629,132.34,132.33,75.98664886]
[1740597017763,2.0342629,132.34,132.26,194.137]
[1740597018475,2.0342629,132.34,132.27,18.64964886]
[1740597018680,2.0342629,132.34,132.29,19.64964886]
[1740597018849,2.0342629,132.34,132.31,19.64964886]
[1740597019168,2.0342629,132.34,132.33,18.64964886]
[1740597019379,2.0342629,132.34,132.33,212.78664886]
[1740597019676,9.7217,132.43,132.33,341.71313357]
[1740597019841,3.1026,132.43,132.35,18.64964886]
[1740597020043,3.1026,132.43,132.36,1.58551772]
[1740597020270,0.03,132.46,132.37,18.64964886]
[1740597020569,0.03,132.46,132.4,43.46964886]
[1740597020821,0.03,132.46,132.42,18.64964886]
[1740597020949,0.03,132.46,132.44,18.64964886]
[1740597021262,0.03,132.46,132.45,18.64964886]
[1740597021885,0.03,132.46,132.45,20.23426435]
[1740597022050,0.03,132.46,132.45,214.37126435]
[1740597022249,0.03,132.46,132.45,212.78664886]
[1740597023346,0.03,132.46,132.45,340.20664886]
[1740597024044,0.03,132.51,132.46,18.64964886]
[1740597024245,0.03,132.51,132.48,18.64964886]
[1740597024476,0.03,132.51,132.5,18.64964886]
[1740597024650,0.03,132.51,132.5,214.35529514]
[1740597024840,0.03,132.52,132.51,78.52529514]
[1740597025043,0.03,132.52,132.51,216.90841772]
[1740597025268,2.0012629,132.55,132.54,21.21829514]
[1740597025472,2.0012629,132.55,132.54,216.90797601]
[1740597025660,2.0012629,132.55,132.54,215.32529514]
[1740597026177,0.03,132.6,132.56,2.0]
[1740597026351,0.03,132.6,132.57,128.92289929]
[1740597026552,0.03,132.6,132.58,19.64964886]
[1740597026880,0.03,132.6,132.59,22.80076753]
[1740597027175,0.03,132.62,132.61,21.21829514]
[1740597027370,0.03,132.62,132.61,22.80017753]
[1740597027576,5.2459629,132.76,132.64,18.64964886]
[1740597027753,5.2459629,132.76,132.64,20.23160726]
[1740597027945,20.0,132.73,132.64,20.23160726]
[1740597028198,21.0,132.73,132.64,18.64964886]
[1740597028570,20.0,132.68,132.61,136.8]
[1740597028953,20.0,132.68,132.61,194.107]
[1740597029270,20.0,132.68,132.62,18.64964886]
[1740597030319,1.5959,132.64,132.62,155.44964886]
[1740597030478,1.5959,132.64,132.61,194.107]
[1740597030853,1.5959,132.64,132.61,57.307]
[1740597031372,1.5959,132.64,132.62,18.64964886]
[1740597032272,1.5959,132.64,132.61,57.307]
[1740597032567,1.5959,132.64,132.61,194.107]
[1740597032872,1.5959,132.64,132.62,18.64964886]
[1740597033071,1.5959,132.64,132.61,194.107]
[1740597033381,1.5959,132.64,132.57,318.1138]
[1740597033672,1.5959,132.64,132.58,18.64964886]
[1740597034043,1.5959,132.64,132.58,209.42344886]
[1740597034288,20.0,132.61,132.58,190.7738]
[1740597034509,20.0,132.61,132.57,127.34]
[1740597034651,20.0,132.61,132.58,18.64964886]
[1740597035057,20.0,132.61,132.58,209.42344886]
[1740597035983,20.0,132.61,132.58,53.9738]
[1740597036156,21.0,132.61,132.57,127.34]
[1740597036353,20.0,132.61,132.57,127.34]
[1740597036586,1.5959,132.64,132.58,18.64964886]
[1740597036786,1.5959,132.64,132.58,209.42344886]
[1740597036956,0.03,132.65,132.6,18.64964886]
[1740597037145,0.03,132.65,132.6,209.42344886]
[1740597037651,0.03,132.64,132.6,209.42344886]
[1740597038270,0.03,132.64,132.58,0.063]
[1740597038271,0.03,132.64,132.58,190.8368]
[1740597038471,0.03,132.64,132.59,18.64964886]
[1740597038887,0.03,132.64,132.59,209.42344886]
[1740597039090,0.03,132.64,132.6,1.5831219]
[1740597039296,0.03,132.64,132.61,18.64964886]
[1740597039497,0.03,132.64,132.61,209.42344886]
[1740597040202,0.03,132.64,132.62,45.58]
[1740597040376,0.03,132.64,132.61,209.42344886]
[1740597041500,0.03,132.64,132.63,18.64964886]
[1740597041681,0.03,132.64,132.63,255.00344886]
[1740597042205,0.03,132.65,132.63,257.57209514]
[1740597042405,0.03,132.65,132.64,91.20009804]
[1740597042707,3.4895629,132.76,132.68,45.58]
[1740597043001,3.4895629,132.76,132.69,191.42964886]
[1740597043174,3.4895629,132.76,132.71,64.22964886]
[1740597043370,1.9712629,132.76,132.71,155.44964886]
[1740597043676,1.9712629,132.76,132.72,1.58151907]
[1740597043882,1.9712629,132.76,132.73,18.64964886]
[1740597044210,1.9712629,132.76,132.73,64.22964886]
[1740597044377,1.9712629,132.76,132.75,64.22964886]
[1740597044575,8.2596,132.88,132.75,64.22964886]
[1740597044771,20.0,132.85,132.77,18.64964886]
[1740597045301,8.2596,132.88,132.77,18.45834886]
[1740597045677,8.2596,132.88,132.77,1.58060073]
[1740597046105,20.0,132.85,132.77,1.58060073]
[1740597046277,8.2596,132.88,132.77,1.58060073]
[1740597046600,1.6076,132.88,132.77,1.58060073]
[1740597046774,1.6076,132.88,132.78,2.56864628]
[1740597046981,1.6076,132.88,132.79,3.5800128]
[1740597047182,1.6076,132.88,132.8,18.64964886]
[1740597047382,1.6076,132.88,132.82,18.64964886]
[1740597047784,1.6076,132.88,132.81,127.1]
[1740597048888,20.0,132.82,132.74,136.8]
[1740597049094,20.0,132.81,132.74,136.8]
[1740597049393,20.0,132.81,132.75,18.64964886]
[1740597049704,20.0,132.85,132.77,18.64964886]
[1740597049898,20.0,132.85,132.79,18.64964886]
[1740597050331,20.0,132.85,132.76,1.58058067]
[1740597050493,20.0,132.85,132.77,18.64964886]
[1740597050786,20.0,132.85,132.79,18.64964886]
[1740597051206,13.5476,132.88,132.79,18.64964886]
[1740597051508,13.5476,132.88,132.79,1.58040429]
[1740597051687,6.5701,132.9,132.79,22.23005315]
[1740597051880,6.5701,132.9,132.8,18.64964886]
[1740597052281,20.0,132.87,132.77,136.8]
[1740597052485,6.5701,132.9,132.79,2.14216157]
[1740597052719,11.92,132.92,132.8,2.57994339]
[1740597052916,1.6628,132.94,132.82,18.64964886]
[1740597053217,20.0,132.92,132.84,18.64964886]
[1740597053393,20.0,132.92,132.83,127.04]
[1740597053725,20.0,132.91,132.83,127.04]
[1740597054217,20.0,132.91,132.84,18.64964886]
[1740597054591,20.0,132.91,132.83,127.04]
[1740597055006,20.0,132.91,132.84,18.64964886]
[1740597055414,20.0,132.91,132.83,127.04]
[1740597055617,20.0,132.87,132.83,127.04]
[1740597055820,19.5,132.87,132.83,127.04]
[1740597057195,82.9,132.93,132.83,127.04]
[1740597057393,0.03,132.95,132.84,20.23033632]
[1740597057622,0.03,132.95,132.84,18.64964886]
[1740597057987,11.95,132.95,132.84,18.64964886]
[1740597058189,6.6149,132.94,132.83,127.0]
[1740597058392,1.6554,132.93,132.83,127.0]
[1740597058617,20.0,132.91,132.83,127.0]
[1740597059006,1.6554,132.93,132.84,20.23025219]
[1740597059517,1.6554,132.93,132.84,65.81025219]
[1740597059725,1.6554,132.93,132.84,18.64964886]
[1740597060024,20.0,132.91,132.84,18.64964886]
[1740597060192,20.0,132.9,132.84,18.64964886]
[1740597060393,20.0,132.89,132.83,127.0]
[1740597060804,20.0,132.89,132.84,18.64964886]
[1740597061013,13.5754,132.93,132.83,127.0]
[1740597061227,20.0,132.89,132.83,127.0]
[1740597061408,20.0,132.89,132.78,190.7738]
[1740597061592,20.0,132.89,132.78,53.9738]
[1740597061795,11.92,132.9,132.78,53.9738]
[1740597062026,11.92,132.9,132.79,18.64964886]
[1740597062230,20.0,132.87,132.78,53.9738]
[1740597062410,20.0,132.81,132.78,53.9738]
[1740597062722,6.2862,132.89,132.78,192.3549668]
[1740597062932,1.6554,132.93,132.83,1.0]
[1740597063230,7.885,132.99,132.87,19.64964886]
[1740597063426,7.885,132.99,132.89,18.64964886]
[1740597063632,7.885,132.99,132.91,18.64964886]
[1740597063923,20.0,132.96,132.91,18.64964886]
[1740597064129,20.0,132.96,132.89,2.57906232]
[1740597064500,7.885,132.99,132.89,2.57906232]
[1740597064501,7.885,132.99,132.9,18.64964886]
[1740597064810,7.885,132.99,132.93,45.58]
[1740597064811,20.0,132.96,132.93,45.58]
[1740597065010,7.885,132.99,132.94,18.64964886]
[1740597065217,7.885,132.99,132.91,45.58]
[1740597065520,20.0,132.96,132.82,23.7]
[1740597065702,20.0,132.96,132.83,2.57973295]
[1740597065895,20.0,132.96,132.89,18.64964886]
[1740597066329,20.0,132.96,132.91,18.64964886]
[1740597066510,20.0,132.96,132.91,64.22964886]
[1740597066826,20.0,132.96,132.88,126.98]
[1740597067029,20.0,132.96,132.89,18.64964886]
[1740597067327,7.885,132.99,132.89,18.64964886]
[1740597067528,20.0,132.96,132.89,18.64964886]
[1740597068421,20.0,132.96,132.88,126.98]
[1740597069225,20.03,132.95,132.88,126.7989]
[1740597069454,20.0,132.93,132.88,126.7989]
[1740597069903,0.03,132.95,132.88,126.7989]
[1740597070104,0.03,132.95,132.89,18.64964886]
[1740597070298,0.03,132.95,132.88,126.7989]
[1740597071428,0.03,132.95,132.89,18.64964886]
[1740597072116,0.03,132.95,132.88,126.7989]
[1740597072522,0.03,132.95,132.89,1.57924886]
[1740597072830,0.03,132.95,132.9,46.58]
[1740597073030,0.03,132.95,132.91,1.57869908]
[1740597073411,0.03,132.95,132.92,1.0]
[1740597073728,0.03,132.95,132.93,2.57846443]
[1740597074215,0.03,132.95,132.94,65.22964886]
[1740597074409,6.6403,133.1,132.96,65.22964886]
[1740597074619,6.6403,133.1,132.99,1.0]
[1740597074931,6.6403,133.1,133.01,18.64964886]
[1740597075224,0.03,133.09,133.02,20.22727544]
[1740597075613,0.03,133.09,133.0,126.88]
[1740597076019,3.631896,133.03,133.02,1.0]
[1740597076243,6.1507,133.15,133.04,19.64964886]
[1740597076416,6.1507,133.15,133.06,18.64964886]
[1740597076624,0.40789277,133.16,133.09,18.64964886]
[1740597076821,0.40789277,133.16,133.09,20.22659012]
[1740597077535,0.40789277,133.16,133.11,18.64964886]
[1740597077723,0.40789277,133.16,133.13,18.64964886]
[1740597077923,0.40789277,133.16,133.12,126.82]
[1740597078224,0.40789277,133.16,133.13,20.22648142]
[1740597078440,0.40789277,133.16,133.14,1.57639634]
[1740597078832,0.40789277,133.16,133.15,18.64964886]
[1740597079324,1.6148,133.29,133.15,18.64964886]
[1740597079325,1.6148,133.29,133.17,19.64964886]
[1740597079542,1.6148,133.29,133.18,20.22516887]
[1740597079732,1.6148,133.29,133.18,18.64964886]
[1740597080044,1.6148,133.29,133.16,1.57617479]
[1740597080251,1.6148,133.29,133.17,18.64964886]
[1740597080842,20.0,133.27,133.17,18.64964886]
[1740597081049,20.0,133.27,133.14,13.45592263]
[1740597081433,20.0,133.27,133.12,126.82]
[1740597081932,20.0,133.22,133.13,18.64964886]
[1740597082332,20.0,133.22,133.12,126.82]
[1740597082333,20.0,133.17,133.12,126.82]
[1740597084048,20.0,133.17,132.99,20.65547688]
[1740597084049,20.0,133.15,133.05,126.72]
[1740597084347,20.0,133.15,133.06,18.64964886]
[1740597084550,20.0,133.15,133.05,126.72]
[1740597085533,20.0,133.11,133.05,126.72]
[1740597085747,1.5479,133.1,133.05,125.0534]
[1740597085936,21.5479,133.1,132.97,263.52]
[1740597086331,20.0,133.09,132.97,263.52]
[1740597086757,20.0,133.05,132.97,263.52]
[1740597087051,20.0,133.01,132.97,126.72]
[1740597087426,20.0,133.01,132.89,317.4938]
[1740597087646,20.0,132.97,132.89,317.4938]
[1740597088034,20.0,132.97,132.89,126.72]
[1740597088249,37.09294294,133.25,132.9,1.627]
[1740597088554,37.44326573,133.63,133.45,1.0]
[1740597088752,211.22,133.64,133.32,6.5548]
[1740597088753,126.72,133.62,133.38,1.57153166]
[1740597089056,6.2803,133.61,133.21,3.74676063]
[1740597089373,3.16623166,133.6,133.16,3.78528191]
[1740597089526,67.8245837,133.53,133.03,37.45492352]
[1740597089854,67.8245837,133.53,133.11,3.77672659]
[1740597090154,67.8245837,133.53,133.3,37.91309712]
[1740597090364,67.8245837,133.53,133.3,105.50744284]
[1740597090526,67.8245837,133.53,133.34,105.12782415]
[1740597090735,67.8245837,133.53,133.36,105.68159045]
[1740597090960,67.3245837,133.53,133.38,37.77743691]
[1740597091170,67.3245837,133.53,133.31,14.50448316]
[1740597091339,67.3245837,133.53,133.33,37.12096207]
[1740597091544,2.9958,133.52,133.38,37.11550464]
[1740597091751,2.9958,133.52,133.27,37.19581895]
[1740597092231,2.9958,133.52,133.27,82.58581895]
[1740597092435,2.9958,133.52,133.27,105.28581895]
[1740597092758,2.9958,133.52,133.49,5.50792381]
[1740597093059,2.9958,133.52,133.29,68.09]
[1740597093265,2.9958,133.52,133.28,45.39]
[1740597093467,2.9958,133.52,133.29,37.57852878]
[1740597093800,2.9958,133.52,133.27,37.54906244]
[1740597094155,14.96,133.52,133.29,37.57852878]
[1740597094353,14.96,133.52,133.31,37.47507594]
[1740597094553,14.92,133.54,133.27,37.54906244]
[1740597094754,14.92,133.54,133.28,1.57362655]
[1740597094953,126.72,133.62,133.28,1.57362655]
[1740597095435,1.57368918,133.61,133.3,68.09]